fUST/lending_fUST_20240829
["ID","MTS","AMOUNT","RATE_DAILY","PERIOD"]
[336531756,1724904451246,-500.0,0.00019178,2]
[336531757,1724904451271,-500.0,0.00019178,2]
[336531758,1724904451293,-500.0,0.00019178,2]
[336531759,1724904451319,-500.0,0.00019178,2]
[336531760,1724904451349,-500.0,0.00019178,2]
[336531761,1724904451377,-503.0344077,0.00019178,2]
[336531762,1724904451403,-500.0,0.00019178,2]
[336531763,1724904451428,-151.0,0.00019178,2]
[336531764,1724904451453,-151.0,0.00019178,2]
[336531765,1724904451476,-500.0,0.00019178,2]
[336531766,1724904451498,-500.0,0.00019178,2]
[336531767,1724904451520,-500.0,0.00019178,2]
[336531768,1724904451542,-504.36866661,0.00019178,2]
[336531769,1724904451566,-151.0,0.00019178,2]
[336531770,1724904451590,-151.0,0.00019178,2]
[336531771,1724904451615,-151.0,0.00019178,2]
[336531772,1724904451639,-151.0,0.00019178,2]
[336531773,1724904451662,-500.0,0.00019178,2]
[336531774,1724904451688,-151.0,0.00019178,2]
[336531775,1724904451709,-501.89801338,0.00019178,2]
[336531776,1724904451729,-151.0,0.00019178,2]
[336531777,1724904451751,-151.0,0.00019178,2]
[336531778,1724904451772,-151.0,0.00019178,2]
[336531779,1724904451794,-151.0,0.00019178,2]
[336531780,1724904451817,-151.0,0.00019178,2]
[336531781,1724904451839,-505.35195191,0.00019178,2]
[336531782,1724904451861,-500.0,0.00019178,2]
[336531783,1724904451882,-151.0,0.00019178,2]
[336531784,1724904451905,-151.0,0.00019178,2]
[336531785,1724904451929,-151.0,0.00019178,2]
[336531786,1724904451953,-500.0,0.00019178,2]
[336531787,1724904451978,-515.184166,0.00019178,2]
[336531788,1724904452001,-500.0,0.00019178,2]
[336531789,1724904452025,-500.0,0.00019178,2]
[336531790,1724904452047,-500.0,0.00019178,2]
[336531791,1724904452071,-509.29481874,0.00019178,2]
[336531792,1724904452090,-507.85892858,0.00019178,2]
[336531793,1724904452110,-500.0,0.00019178,2]
[336531794,1724904452130,-504.39884744,0.00019178,2]
[336531795,1724904452149,-500.0,0.00019178,2]
[336531796,1724904452171,-297.97003141,0.00019178,2]
[336531797,1724904452192,-500.0,0.00019178,2]
[336531798,1724904452213,-500.0,0.00019178,2]
[336531799,1724904452235,-500.0,0.00019178,2]
[336531800,1724904452257,-500.0,0.00019178,2]
[336531801,1724904452280,-500.0,0.00019178,2]
[336531802,1724904452302,-610.99643278,0.00019178,2]
[336531803,1724904452328,-151.0,0.00019178,2]
[336531804,1724904452355,-151.0,0.00019178,2]
[336531805,1724904452378,-151.0,0.00019178,2]
[336531806,1724904452401,-500.0,0.00019178,2]
[336531807,1724904452423,-151.0,0.00019178,2]
[336531808,1724904452447,-151.0,0.00019178,2]
[336531809,1724904452471,-500.0,0.00019178,2]
[336531810,1724904452493,-151.0,0.00019178,2]
[336531811,1724904452517,-151.0,0.00019178,2]
[336531812,1724904452538,-209.035568,0.00019178,2]
[336531813,1724904452560,-503.90089513,0.00019178,2]
[336531814,1724904452586,-500.0,0.00019178,2]
[336531815,1724904452607,-500.0,0.00019178,2]
[336531816,1724904452630,-500.0,0.00019178,2]
[336531817,1724904452651,-506.12913711,0.00019178,2]
[336531818,1724904452797,-500.0,0.00019178,2]
[336531819,1724904452823,-500.0,0.00019178,2]
[336531820,1724904452847,-500.0,0.00019178,2]
[336531821,1724904452870,-500.0,0.00019178,2]
[336531822,1724904452894,-700.79,0.00019178,2]
[336531823,1724904452920,-505.78034997,0.00019178,2]
[336531824,1724904452944,-500.0,0.00019178,2]
[336531825,1724904452968,-500.0,0.00019178,2]
[336531826,1724904452994,-500.0,0.00019178,2]
[336531827,1724904453017,-500.0,0.00019178,2]
[336531828,1724904453042,-500.0,0.00019178,2]
[336531829,1724904453067,-500.0,0.00019178,2]
[336531830,1724904453089,-501.29173104,0.00019178,2]
[336531831,1724904453114,-8510.48,0.00019178,2]
[336531832,1724904453136,-502.59503862,0.00019178,2]
[336531833,1724904453158,-500.0,0.00019178,2]
[336531834,1724904453180,-500.0,0.00019178,2]
[336531835,1724904453206,-500.0,0.00019178,2]
[336531836,1724904453230,-500.0,0.00019178,2]
[336531837,1724904453252,-500.0,0.00019178,2]
[336531838,1724904453276,-500.0,0.00019178,2]
[336531839,1724904453299,-500.0,0.00019178,2]
[336531840,1724904453324,-500.0,0.00019178,2]
[336531841,1724904453350,-500.0,0.00019178,2]
[336531842,1724904453374,-500.0,0.00019178,2]
[336531843,1724904453402,-500.0,0.00019178,2]
[336531844,1724904453427,-500.0,0.00019178,2]
[336531845,1724904453449,-500.0,0.00019178,2]
[336531846,1724904453472,-431.34181966,0.00019178,2]
[336531847,1724904453495,-500.0,0.00019178,2]
[336531848,1724904453518,-500.0,0.00019178,2]
[336531849,1724904453542,-500.0,0.00019178,2]
[336531850,1724904453567,-929.79,0.00019178,2]
[336531851,1724904453588,-500.0,0.00019178,2]
[336531852,1724904453611,-577.21,0.00019178,2]
[336531853,1724904453634,-500.0,0.00019178,2]
[336531854,1724904453656,-347.4501703,0.00019178,2]
[336531896,1724904632217,-300.0,0.00018169,2]
[336531897,1724904632228,-2970.51762541,0.0001817,2]
[336531898,1724904632272,-551.9505191,0.0001817,2]
[336531905,1724904638398,-1346.5,0.0001817,2]
[336531924,1724904640940,-20031.03185549,0.0001817,2]
[336531925,1724904640950,-19958.33950162,0.000191,2]
[336531926,1724904640959,-151.0,0.00019168,2]
[336531927,1724904640968,-11017.0059155,0.00019168,2]
[336531928,1724904640978,-500.0,0.00019178,2]
[336531929,1724904640987,-502.86614356,0.00019178,2]
[336531930,1724904640997,-500.0,0.00019178,2]
[336531931,1724904641006,-500.0,0.00019178,2]
[336531932,1724904641015,-500.0,0.00019178,2]
[336531933,1724904641024,-503.25130924,0.00019178,2]
[336531934,1724904641033,-503.40016197,0.00019178,2]
[336531935,1724904641043,-500.0,0.00019178,2]
[336531936,1724904641052,-500.0,0.00019178,2]
[336531937,1724904641061,-500.0,0.00019178,2]
[336531938,1724904641070,-512.04,0.00019178,2]
[336531939,1724904641079,-500.0,0.00019178,2]
[336531940,1724904641087,-438.91504249,0.00019178,2]
[336531941,1724904641096,-500.0,0.00019178,2]
[336531942,1724904641106,-500.0,0.00019178,2]
[336531943,1724904641115,-500.0,0.00019178,2]
[336531944,1724904641124,-500.0,0.00019178,2]
[336531945,1724904641133,-500.0,0.00019178,2]
[336531946,1724904641142,-500.0,0.00019178,2]
[336531947,1724904641152,-500.0,0.00019178,2]
[336531948,1724904641161,-500.0,0.00019178,2]
[336531949,1724904641170,-500.0,0.00019178,2]
[336531950,1724904641179,-500.0,0.00019178,2]
[336531951,1724904641188,-525.06269598,0.00019178,2]
[336531952,1724904641197,-500.84794612,0.00019178,2]
[336531953,1724904641206,-500.0,0.00019178,2]
[336531954,1724904641215,-292.38855938,0.00019178,2]
[336531955,1724904641226,-500.0,0.00019178,2]
[336531956,1724904641235,-152.754343,0.00019178,2]
[336531957,1724904641244,-500.0,0.00019178,2]
[336531958,1724904641253,-500.0,0.00019178,2]
[336531959,1724904641262,-261.2441557,0.00019178,2]
[336531960,1724904641272,-500.0,0.00019178,2]
[336531961,1724904641282,-502.85212743,0.00019178,2]
[336531962,1724904641291,-500.0,0.00019178,2]
[336531963,1724904641300,-160.399226,0.00019178,2]
[336531964,1724904641309,-160.399226,0.00019178,2]
[336531965,1724904641318,-160.399226,0.00019178,2]
[336531966,1724904641328,-160.399226,0.00019178,2]
[336531967,1724904641337,-160.399226,0.00019178,2]
[336531968,1724904641346,-160.399226,0.00019178,2]
[336531969,1724904641356,-160.399226,0.00019178,2]
[336531970,1724904641365,-506.56978484,0.00019178,2]
[336531971,1724904641375,-160.399226,0.00019178,2]
[336531972,1724904641384,-160.399226,0.00019178,2]
[336531973,1724904641394,-160.399226,0.00019178,2]
[336531974,1724904641403,-500.0,0.00019178,2]
[336531975,1724904641413,-500.0,0.00019178,2]
[336531976,1724904641423,-181.310294,0.00019178,2]
[336531977,1724904641433,-503.30748404,0.00019178,2]
[336531978,1724904641443,-159.3620808,0.00019178,2]
[336531979,1724904641452,-500.0,0.00019178,2]
[336531980,1724904641461,-500.0,0.00019178,2]
[336531981,1724904641472,-500.0,0.00019178,2]
[336531982,1724904641481,-1532.3,0.00019178,2]
[336531983,1724904641492,-500.0,0.00019178,2]
[336531984,1724904641502,-500.0,0.00019178,2]
[336531985,1724904641512,-500.0,0.00019178,2]
[336531986,1724904641525,-500.0,0.00019178,2]
[336531987,1724904641537,-500.0,0.00019178,2]
[336531988,1724904641547,-500.0,0.00019178,2]
[336531989,1724904641557,-4000.0,0.00019178,2]
[336531990,1724904641569,-821.059461,0.00019178,2]
[336531991,1724904641579,-500.0,0.00019178,2]
[336531992,1724904641589,-500.0,0.00019178,2]
[336531993,1724904641600,-500.0,0.00019178,2]
[336531994,1724904641611,-500.0,0.00019178,2]
[336531995,1724904641621,-1547.93,0.00019178,2]
[336531996,1724904641630,-500.0,0.00019178,2]
[336531997,1724904641642,-646.99,0.00019178,2]
[336531998,1724904641652,-500.0,0.00019178,2]
[336531999,1724904641663,-669.39,0.00019178,2]
[336532000,1724904641673,-500.0,0.00019178,2]
[336532001,1724904641683,-1392.82,0.00019178,2]
[336532002,1724904641694,-500.0,0.00019178,2]
[336532003,1724904641705,-500.0,0.00019178,2]
[336532004,1724904641717,-500.0,0.00019178,2]
[336532005,1724904641729,-500.0,0.00019178,2]
[336532006,1724904641739,-1732.17,0.00019178,2]
[336532007,1724904641750,-507.38898345,0.00019178,2]
[336532008,1724904641760,-10898.06,0.00019178,2]
[336532009,1724904641770,-151.0,0.00019178,2]
[336532010,1724904641780,-281.802418,0.00019178,2]
[336532011,1724904641790,-500.0,0.00019178,2]
[336532012,1724904641800,-500.0,0.00019178,2]
[336532013,1724904641810,-1322.96,0.00019178,2]
[336532014,1724904641819,-503.79072489,0.00019178,2]
[336532015,1724904641829,-500.0,0.00019178,2]
[336532016,1724904641838,-500.0,0.00019178,2]
[336532017,1724904641848,-162.391877,0.00019178,2]
[336532018,1724904641858,-500.0,0.00019178,2]
[336532019,1724904641868,-500.0,0.00019178,2]
[336532020,1724904641877,-500.0,0.00019178,2]
[336532021,1724904641887,-500.0,0.00019178,2]
[336532022,1724904641896,-500.0,0.00019178,2]
[336532023,1724904641906,-500.0,0.00019178,2]
[336532024,1724904641916,-500.0,0.00019178,2]
[336532025,1724904641925,-151.0,0.00019178,2]
[336532026,1724904641935,-151.0,0.00019178,2]
[336532027,1724904641944,-151.0,0.00019178,2]
[336532028,1724904641954,-151.0,0.00019178,2]
[336532029,1724904641964,-662.6,0.00019178,2]
[336532030,1724904641974,-151.0,0.00019178,2]
[336532031,1724904641985,-160.971302,0.00019178,2]
[336532032,1724904641995,-500.0,0.00019178,2]
[336532033,1724904642005,-500.0,0.00019178,2]
[336532034,1724904642015,-8155.87,0.00019178,2]
[336532035,1724904642024,-500.0,0.00019178,2]
[336532036,1724904642034,-500.0,0.00019178,2]
[336532037,1724904642044,-500.0,0.00019178,2]
[336532038,1724904642053,-500.0,0.00019178,2]
[336532039,1724904642064,-500.0,0.00019178,2]
[336532040,1724904642075,-500.0,0.00019178,2]
[336532041,1724904642084,-500.0,0.00019178,2]
[336532042,1724904642094,-500.0,0.00019178,2]
[336532043,1724904642103,-500.0,0.00019178,2]
[336532044,1724904642112,-500.0,0.00019178,2]
[336532045,1724904642121,-500.0,0.00019178,2]
[336532046,1724904642132,-671.59,0.00019178,2]
[336532047,1724904642142,-500.0,0.00019178,2]
[336532048,1724904642151,-891.05,0.00019178,2]
[336532049,1724904642162,-500.0,0.00019178,2]
[336532050,1724904642174,-500.0,0.00019178,2]
[336532051,1724904642183,-500.0,0.00019178,2]
[336532052,1724904642192,-500.0,0.00019178,2]
[336532053,1724904642201,-1478.65,0.00019178,2]
[336532054,1724904642210,-500.0,0.00019178,2]
[336532055,1724904642219,-500.0,0.00019178,2]
[336532056,1724904642230,-553.16,0.00019178,2]
[336532057,1724904642239,-500.0,0.00019178,2]
[336532058,1724904642251,-500.0,0.00019178,2]
[336532059,1724904642262,-500.0,0.00019178,2]
[336532060,1724904642272,-500.0,0.00019178,2]
[336532061,1724904642284,-500.0,0.00019178,2]
[336532062,1724904642296,-500.0,0.00019178,2]
[336532063,1724904642308,-500.0,0.00019178,2]
[336532064,1724904642319,-500.0,0.00019178,2]
[336532065,1724904642328,-500.0,0.00019178,2]
[336532066,1724904642338,-500.0,0.00019178,2]
[336532067,1724904642348,-500.0,0.00019178,2]
[336532068,1724904642357,-500.0,0.00019178,2]
[336532069,1724904642368,-1263.4,0.00019178,2]
[336532070,1724904642380,-500.0,0.00019178,2]
[336532071,1724904642390,-500.0,0.00019178,2]
[336532072,1724904642401,-625.76,0.00019178,2]
[336532073,1724904642413,-500.0,0.00019178,2]
[336532074,1724904642423,-500.0,0.00019178,2]
[336532075,1724904642435,-500.0,0.00019178,2]
[336532076,1724904642445,-500.0,0.00019178,2]
[336532077,1724904642456,-500.0,0.00019178,2]
[336532078,1724904642468,-14926.18,0.00019178,2]
[336532079,1724904642478,-999.47,0.00019178,2]
[336532080,1724904642487,-999.47,0.00019178,2]
[336532081,1724904642497,-999.47,0.00019178,2]
[336532082,1724904642508,-999.47,0.00019178,2]
[336532083,1724904642519,-999.47,0.00019178,2]
[336532084,1724904642533,-999.47,0.00019178,2]
[336532085,1724904642544,-999.47,0.00019178,2]
[336532086,1724904642555,-999.47,0.00019178,2]
[336532087,1724904642565,-999.47,0.00019178,2]
[336532088,1724904642574,-2816.71,0.00019178,2]
[336532089,1724904642583,-999.47,0.00019178,2]
[336532090,1724904642593,-500.0,0.00019178,2]
[336532091,1724904642602,-500.0,0.00019178,2]
[336532092,1724904642612,-500.0,0.00019178,2]
[336532093,1724904642622,-500.0,0.00019178,2]
[336532094,1724904642635,-500.0,0.00019178,2]
[336532095,1724904642647,-500.0,0.00019178,2]
[336532096,1724904642659,-669.75,0.00019178,2]
[336532097,1724904642670,-500.0,0.00019178,2]
[336532098,1724904642680,-500.0,0.00019178,2]
[336532099,1724904642691,-500.0,0.00019178,2]
[336532100,1724904642701,-609.91083931,0.00019178,2]
[336532101,1724904643166,-63.89916069,0.00019178,2]
[336532102,1724904643177,-500.0,0.00019178,2]
[336532103,1724904643188,-500.0,0.00019178,2]
[336532104,1724904643197,-72.58314431,0.00019178,2]
[336532105,1724904643323,-429.90941235,0.00019178,2]
[336532106,1724904643334,-123.30772586,0.00019178,2]
[336532107,1724904643347,-376.69227414,0.00019178,2]
[336532108,1724904643358,-500.0,0.00019178,2]
[336532109,1724904643370,-500.0,0.00019178,2]
[336532110,1724904643380,-163.77055505,0.00019178,2]
[336532111,1724904643394,-336.22944495,0.00019178,2]
[336532112,1724904643406,-953.64,0.00019178,2]
[336532113,1724904643416,-500.0,0.00019178,2]
[336532114,1724904643427,-500.0,0.00019178,2]
[336532115,1724904643436,-500.0,0.00019178,2]
[336532116,1724904643447,-500.0,0.00019178,2]
[336532117,1724904643457,-500.0,0.00019178,2]
[336532119,1724904643467,-500.0,0.00019178,2]
[336532120,1724904643479,-569.86,0.00019178,2]
[336532121,1724904643490,-500.0,0.00019178,2]
[336532122,1724904643499,-500.0,0.00019178,2]
[336532123,1724904643509,-500.0,0.00019178,2]
[336532124,1724904643519,-500.0,0.00019178,2]
[336532125,1724904643532,-507.31632865,0.00019178,2]
[336532126,1724904643541,-500.0,0.00019178,2]
[336532127,1724904643551,-500.0,0.00019178,2]
[336532128,1724904643560,-500.0,0.00019178,2]
[336532129,1724904643571,-500.0,0.00019178,2]
[336532130,1724904643580,-578.17915293,0.00019178,2]
[336532131,1724904643591,-162.331416,0.00019178,2]
[336532132,1724904643602,-255.136479,0.00019178,2]
[336532133,1724904643611,-255.136479,0.00019178,2]
[336532134,1724904643621,-255.136479,0.00019178,2]
[336532135,1724904643631,-255.136479,0.00019178,2]
[336532136,1724904643642,-255.136479,0.00019178,2]
[336532137,1724904643652,-255.136479,0.00019178,2]
[336532138,1724904643662,-255.136479,0.00019178,2]
[336532139,1724904643672,-255.136479,0.00019178,2]
[336532140,1724904643682,-255.136479,0.00019178,2]
[336532141,1724904643692,-255.136479,0.00019178,2]
[336532142,1724904643702,-255.136479,0.00019178,2]
[336532143,1724904643713,-255.136479,0.00019178,2]
[336532144,1724904643723,-600.0,0.000192,2]
[336532145,1724904643732,-403.77382061,0.00019206,2]
[336532146,1724904643742,-403.77382061,0.00019279,2]
[336532147,1724904643752,-989.17465039,0.00019352,2]
[336532148,1724904643762,-403.77382061,0.00019352,2]
[336532149,1724904643773,-600.0,0.000194,2]
[336532150,1724904643782,-160.399226,0.00019435,2]
[336532151,1724904643792,-160.399226,0.00019435,2]
[336532152,1724904643802,-255.136479,0.00019435,2]
[336532153,1724904643812,-255.136479,0.00019435,2]
[336532154,1724904643822,-1477.69314777,0.00019441,2]
[336532155,1724904643859,-3428.23902882,0.00019441,2]
[336532156,1724904643871,-455.57166693,0.00019441,2]
[336532157,1724904643921,-5655.50207198,0.00019441,2]
[336532158,1724904643931,-999.47,0.00019441,2]
[336532159,1724904643941,-999.47,0.00019441,2]
[336532160,1724904643951,-151.0,0.00019442,2]
[336532161,1724904643960,-160.399226,0.00019442,2]
[336532162,1724904643970,-160.399226,0.00019442,2]
[336532163,1724904643980,-255.136479,0.00019442,2]
[336532164,1724904643989,-198.72424293,0.00019442,2]
[336532170,1724904646543,-56.41223607,0.00019442,2]
[336532171,1724904646552,-256.884131,0.00019442,2]
[336532172,1724904646568,-151.0,0.00019442,2]
[336532173,1724904646578,-151.0,0.00019442,2]
[336532174,1724904646588,-151.0,0.00019442,2]
[336532175,1724904646598,-151.0,0.00019442,2]
[336532176,1724904646607,-151.0,0.00019442,2]
[336532177,1724904646618,-151.0,0.00019442,2]
[336532178,1724904646629,-151.0,0.00019442,2]
[336532179,1724904646640,-12681.12394393,0.00019442,2]
[336532193,1724905105211,300.0,0.00025,120]
[336532209,1724905647129,-620.192726,0.00014247,2]
[336532210,1724905647154,-300.0,0.00017974,2]
[336532211,1724905647175,-24900.0,0.00017975,2]
[336532212,1724905647197,-162.363851,0.00018023,2]
[336532213,1724905647225,-162.363851,0.00018128,2]
[336532214,1724905647248,-162.363851,0.00018232,2]
[336532215,1724905647271,-162.363851,0.00018336,2]
[336532216,1724905647295,-162.363851,0.00018441,2]
[336532217,1724905647319,-162.363851,0.00018545,2]
[336532218,1724905647343,-162.363851,0.00018649,2]
[336532219,1724905647366,-162.363851,0.00018754,2]
[336532220,1724905647390,-162.363851,0.00018858,2]
[336532221,1724905647413,-354.383618,0.00018904,2]
[336532222,1724905647437,-162.363851,0.00018963,2]
[336532223,1724905647460,-300.0,0.00019,2]
[336532224,1724905647483,-18562.4982535,0.00019168,2]
[336532225,1724905647505,-500.0,0.00019178,2]
[336532226,1724905647527,-500.0,0.00019178,2]
[336532227,1724905647548,-500.0,0.00019178,2]
[336532228,1724905647571,-500.0,0.00019178,2]
[336532229,1724905647592,-500.0,0.00019178,2]
[336532230,1724905647615,-500.0,0.00019178,2]
[336532231,1724905647637,-500.0,0.00019178,2]
[336532232,1724905647659,-381.88572122,0.00019178,2]
[336532233,1724905647681,-288.97159244,0.00019178,2]
[336532234,1724905647703,-500.0,0.00019178,2]
[336532235,1724905647725,-500.0,0.00019178,2]
[336532236,1724905647746,-500.0,0.00019178,2]
[336532237,1724905647770,-500.0,0.00019178,2]
[336532238,1724905647792,-501.56254941,0.00019178,2]
[336532239,1724905647813,-396.1924673,0.00019178,2]
[336532240,1724905647835,-503.3026395,0.00019178,2]
[336532241,1724905647860,-500.0,0.00019178,2]
[336532242,1724905647881,-364.16002508,0.00019178,2]
[336532243,1724905647905,-500.0,0.00019178,2]
[336532244,1724905647931,-500.0,0.00019178,2]
[336532245,1724905647953,-500.0,0.00019178,2]
[336532246,1724905647974,-500.0,0.00019178,2]
[336532247,1724905647994,-503.32264384,0.00019178,2]
[336532248,1724905648188,-500.0,0.00019178,2]
[336532249,1724905648209,-500.0,0.00019178,2]
[336532250,1724905648230,-500.0,0.00019178,2]
[336532251,1724905648250,-500.0,0.00019178,2]
[336532252,1724905648271,-500.0,0.00019178,2]
[336532253,1724905648292,-500.0,0.00019178,2]
[336532254,1724905648316,-500.0,0.00019178,2]
[336532255,1724905648337,-500.0,0.00019178,2]
[336532256,1724905648360,-500.0,0.00019178,2]
[336532257,1724905648384,-500.0,0.00019178,2]
[336532258,1724905648409,-500.0,0.00019178,2]
[336532259,1724905648432,-500.0,0.00019178,2]
[336532260,1724905648455,-503.25581702,0.00019178,2]
[336532261,1724905648478,-230.23399864,0.00019178,2]
[336532262,1724905648500,-500.0,0.00019178,2]
[336532263,1724905648523,-500.0,0.00019178,2]
[336532264,1724905648546,-500.0,0.00019178,2]
[336532265,1724905648568,-500.0,0.00019178,2]
[336532266,1724905648588,-500.0,0.00019178,2]
[336532267,1724905648609,-500.0,0.00019178,2]
[336532268,1724905648630,-500.0,0.00019178,2]
[336532269,1724905648651,-500.0,0.00019178,2]
[336532270,1724905648672,-500.0,0.00019178,2]
[336532271,1724905648693,-513.49656592,0.00019178,2]
[336532272,1724905648714,-500.0,0.00019178,2]
[336532273,1724905648735,-500.0,0.00019178,2]
[336532274,1724905648756,-502.7307712,0.00019178,2]
[336532275,1724905648777,-500.0,0.00019178,2]
[336532276,1724905648798,-500.0,0.00019178,2]
[336532277,1724905648824,-500.0,0.00019178,2]
[336532278,1724905648854,-500.0,0.00019178,2]
[336532279,1724905648883,-500.0,0.00019178,2]
[336532280,1724905648909,-500.0,0.00019178,2]
[336532281,1724905648934,-500.0,0.00019178,2]
[336532282,1724905648959,-500.0,0.00019178,2]
[336532283,1724905648983,-594.36233764,0.00019178,2]
[336532284,1724905649008,-501.93966529,0.00019178,2]
[336532285,1724905649033,-500.0,0.00019178,2]
[336532286,1724905649057,-500.0,0.00019178,2]
[336532287,1724905649079,-500.0,0.00019178,2]
[336532288,1724905649103,-500.0,0.00019178,2]
[336532289,1724905649127,-500.0,0.00019178,2]
[336532290,1724905649151,-500.0,0.00019178,2]
[336532291,1724905649173,-500.0,0.00019178,2]
[336532292,1724905649198,-500.0,0.00019178,2]
[336532293,1724905649220,-500.0,0.00019178,2]
[336532294,1724905649244,-215.01952369,0.00019178,2]
[336532295,1724905649275,-500.0,0.00019178,2]
[336532296,1724905649298,-288.644213,0.00019178,2]
[336532297,1724905649321,-503.56830977,0.00019178,2]
[336532298,1724905649343,-151.0,0.00019178,2]
[336532299,1724905649365,-161.486919,0.00019178,2]
[336532300,1724905649387,-500.0,0.00019178,2]
[336532301,1724905649410,-913.91,0.00019178,2]
[336532302,1724905649432,-500.0,0.00019178,2]
[336532303,1724905649454,-500.0,0.00019178,2]
[336532304,1724905649477,-256.35680208,0.00019178,2]
[336532305,1724905649499,-500.0,0.00019178,2]
[336532306,1724905649521,-500.0,0.00019178,2]
[336532307,1724905649547,-500.0,0.00019178,2]
[336532308,1724905649569,-500.0,0.00019178,2]
[336532309,1724905649594,-500.0,0.00019178,2]
[336532310,1724905649618,-500.0,0.00019178,2]
[336532311,1724905649640,-500.0,0.00019178,2]
[336532312,1724905649664,-503.0197259,0.00019178,2]
[336532313,1724905649689,-500.0,0.00019178,2]
[336532314,1724905649712,-500.0,0.00019178,2]
[336532315,1724905649737,-506.6992242,0.00019178,2]
[336532316,1724905649760,-516.63604888,0.00019178,2]
[336532317,1724905649784,-500.0,0.00019178,2]
[336532318,1724905649807,-521.59540731,0.00019178,2]
[336532319,1724905649830,-500.0,0.00019178,2]
[336532320,1724905649855,-1850.885376,0.00019178,2]
[336532321,1724905649878,-504.68681306,0.00019178,2]
[336532322,1724905649903,-151.0,0.00019178,2]
[336532323,1724905649927,-151.0,0.00019178,2]
[336532324,1724905649949,-151.0,0.00019178,2]
[336532325,1724905649973,-151.0,0.00019178,2]
[336532326,1724905649998,-500.0,0.00019178,2]
[336532327,1724905650022,-500.0,0.00019178,2]
[336532328,1724905650043,-500.0,0.00019178,2]
[336532329,1724905650066,-500.0,0.00019178,2]
[336532330,1724905650089,-500.0,0.00019178,2]
[336532331,1724905650111,-254.56211267,0.00019178,2]
[336532332,1724905650133,-500.0,0.00019178,2]
[336532333,1724905650157,-151.0,0.00019178,2]
[336532334,1724905650179,-151.0,0.00019178,2]
[336532335,1724905650206,-500.0,0.00019178,2]
[336532336,1724905650233,-500.0,0.00019178,2]
[336532337,1724905650256,-500.0,0.00019178,2]
[336532338,1724905650279,-500.0,0.00019178,2]
[336532339,1724905650302,-328.03077372,0.00019178,2]
[336532340,1724905650327,-634.99,0.00019178,2]
[336532341,1724905650349,-500.0,0.00019178,2]
[336532342,1724905650371,-500.0,0.00019178,2]
[336532343,1724905650392,-500.0,0.00019178,2]
[336532344,1724905650414,-500.0,0.00019178,2]
[336532345,1724905650438,-504.85531301,0.00019178,2]
[336532346,1724905650461,-500.0,0.00019178,2]
[336532347,1724905650484,-500.0,0.00019178,2]
[336532348,1724905650506,-500.0,0.00019178,2]
[336532349,1724905650530,-643.61,0.00019178,2]
[336532350,1724905650554,-500.0,0.00019178,2]
[336532351,1724905650577,-500.0,0.00019178,2]
[336532352,1724905650600,-502.76909917,0.00019178,2]
[336532353,1724905650622,-500.0,0.00019178,2]
[336532354,1724905650646,-853.92,0.00019178,2]